bitfinex/quotes_ETHUSD_20241105
["timestamp","ask_amount","ask_price","bid_price","bid_amount"]
[1730766025285,0.1026132,2406.6,2406.3,4.15572]
[1730766025597,0.1026132,2406.5,2406.4,4.98598]
[1730766025817,8.19585183,2406.8,2406.4,4.98598]
[1730766025973,0.1026132,2406.5,2406.4,4.98598]
[1730766026173,8.19585183,2406.8,2406.4,4.98598]
[1730766026398,8.19585183,2406.8,2406.4,0.8304]
[1730766026399,0.1026132,2406.5,2406.4,0.8304]
[1730766026720,8.19585183,2406.8,2406.4,0.8304]
[1730766026923,0.1026132,2406.5,2406.2,5.91554183]
[1730766027127,4.15507,2406.7,2406.2,6.92271101]
[1730766027328,0.1026132,2406.4,2406.2,6.92271101]
[1730766027511,4.15507,2406.7,2406.2,6.92271101]
[1730766027827,4.15507,2406.7,2406.2,5.91554183]
[1730766027980,4.2579432,2406.6,2406.2,0.95947183]
[1730766032637,4.30937628,2406.6,2406.2,0.95947183]
[1730766035172,8.19628183,2406.5,2406.2,0.95947183]
[1730766035327,4.15575,2406.3,2405.7,0.8225]
[1730766035528,4.04087183,2406.1,2405.8,4.1565]
[1730766035934,4.04087183,2406.1,2405.7,0.8225]
[1730766035935,0.15303822,2406.0,2405.7,0.8225]
[1730766036127,0.15303822,2406.0,2405.7,4.97927]
[1730766037058,0.15303822,2406.0,2405.8,4.1566]
[1730766038687,0.15303822,2406.0,2405.7,0.8225]
[1730766040582,0.15303822,2406.0,2405.7,4.97925]
[1730766041180,4.1567,2405.8,2405.2,7.15755]
[1730766041399,4.04087183,2405.4,2405.0,0.6508162]
[1730766041585,4.04087183,2405.4,2405.1,0.25554241]
[1730766041586,0.15285699,2405.3,2405.1,0.25554241]
[1730766041762,0.15285699,2405.3,2405.0,4.15789]
[1730766042302,0.15285699,2405.3,2405.1,0.25569291]
[1730766042303,4.31041699,2405.3,2405.1,0.25569291]
[1730766042501,4.31041699,2405.3,2404.9,0.95999049]
[1730766042502,4.15796,2405.1,2404.9,0.95999049]
[1730766042712,4.158,2405.0,2404.9,0.95999049]
[1730766042991,4.31062844,2405.0,2404.9,0.95999049]
[1730766044096,5.07432844,2405.0,2404.9,0.95999049]
[1730766045995,8.07432844,2405.0,2404.9,0.95999049]
[1730766046174,9.70163247,2405.0,2404.9,0.95999049]
[1730766046575,13.7425043,2405.0,2404.9,0.95999049]
[1730766047159,7.94627,2404.9,2404.8,0.0598727]
[1730766047386,8.09723499,2404.9,2404.8,0.0598727]
[1730766048193,4.93368,2404.2,2403.7,1.28161502]
[1730766048387,8.35121168,2404.1,2403.8,0.25518886]
[1730766048590,8.35121168,2404.1,2403.9,0.25518886]
[1730766048897,8.35121168,2404.1,2403.7,0.7708]
[1730766049202,8.35121168,2404.1,2403.8,0.25534757]
[1730766049405,8.35121168,2404.1,2403.7,0.7708]
[1730766049612,8.35121168,2404.1,2403.8,0.25510135]
[1730766049904,8.35121168,2404.1,2403.7,0.7708]
[1730766049905,4.19163168,2404.1,2403.7,4.93101]
[1730766050105,4.19163168,2404.1,2403.8,0.25512362]
[1730766050306,4.19163168,2404.1,2403.7,0.7708]
[1730766050525,8.35119168,2404.1,2403.8,0.25493324]
[1730766050819,8.35119168,2404.1,2403.7,0.7708]
[1730766051115,8.35119168,2404.1,2403.8,0.25493763]
[1730766051415,8.35119168,2404.1,2403.7,0.7708]
[1730766051416,4.19163168,2404.1,2403.7,0.7708]
[1730766051713,4.19163168,2404.1,2403.8,0.2547932]
[1730766051875,4.19163168,2404.1,2403.7,0.7708]
[1730766052079,4.19163168,2404.1,2403.8,0.25479325]
[1730766052303,4.19163168,2404.1,2403.7,0.7708]
[1730766052493,4.19163168,2404.1,2403.8,0.2546895]
[1730766052688,9.67969185,2404.1,2403.6,4.2201527]
[1730766052900,9.67969185,2404.1,2403.7,0.25472822]
[1730766053098,9.67969185,2404.1,2403.6,4.2201527]
[1730766053405,5.52011185,2404.1,2403.7,0.2547144]
[1730766053718,5.52011185,2404.1,2403.8,0.25463163]
[1730766054021,9.67968185,2404.1,2403.6,4.2201527]
[1730766054217,7.48319917,2404.1,2403.7,0.25462982]
[1730766054421,7.48319917,2404.1,2403.8,0.25462982]
[1730766054605,7.48319917,2404.1,2403.6,4.2201527]
[1730766054922,7.48319917,2404.1,2403.7,0.25454321]
[1730766055119,7.48319917,2404.1,2403.8,0.25454321]
[1730766055326,7.48319917,2404.1,2403.6,8.3804927]
[1730766055512,3.32362917,2404.1,2403.7,4.41463897]
[1730766055843,4.04087183,2404.7,2404.0,4.15973]
[1730766056134,8.19939183,2404.7,2404.2,4.15925]
[1730766056288,4.04087183,2404.7,2404.3,0.25447897]
[1730766056487,4.15869,2404.6,2404.2,5.0165829]
[1730766056687,4.04087183,2404.7,2404.3,0.25438765]
[1730766056930,4.04087183,2404.7,2404.4,0.25435616]
[1730766057094,4.04087183,2404.7,2404.2,4.15925]
[1730766057287,4.04087183,2404.7,2404.3,4.41355291]
[1730766057511,4.04087183,2404.7,2404.4,0.25436291]
[1730766057715,4.04087183,2404.7,2404.5,0.25436291]
[1730766057921,8.19940183,2404.7,2404.2,4.15925]
[1730766058111,8.19940183,2404.7,2404.3,0.66185351]
[1730766058319,8.19940183,2404.7,2404.4,0.25455302]
[1730766058492,4.04087183,2404.7,2404.5,0.25455302]
[1730766058692,4.04087183,2404.7,2404.3,4.15916]
[1730766058994,4.04087183,2404.7,2404.4,0.25461407]
[1730766059303,4.04087183,2404.7,2404.5,0.25461407]
[1730766059506,4.04087183,2404.7,2404.6,0.25461407]
[1730766060963,4.04087183,2404.7,2404.6,0.25472635]
[1730766062038,4.04087183,2405.0,2404.6,4.41341635]
[1730766062221,4.04087183,2405.3,2404.8,0.8096]
[1730766062431,4.81987183,2405.6,2405.2,4.15762]
[1730766062724,4.81987183,2405.6,2404.8,4.96782]
[1730766062725,4.04087183,2405.3,2404.8,4.96782]
[1730766062924,4.15766,2405.2,2404.9,0.66269347]
[1730766063238,4.93666,2405.2,2405.0,0.66269347]
[1730766063443,4.18116583,2405.1,2404.7,4.15843]
[1730766063750,4.93717,2404.9,2404.8,0.66317463]
[1730766064092,5.8607194,2404.9,2404.8,0.25517744]
[1730766064373,5.8607194,2404.9,2404.8,0.25536605]
[1730766064374,10.04188523,2404.9,2404.8,0.25536605]
[1730766067470,4.15847,2404.8,2404.3,4.15913]
[1730766067643,4.15847,2404.8,2404.4,1.17698672]
[1730766067963,4.15847,2404.8,2404.5,1.17698672]
[1730766068170,0.140294,2404.7,2404.6,0.66523797]
[1730766068323,0.140294,2404.7,2404.6,1.17735968]
[1730766068527,4.15847,2404.8,2404.6,1.17735968]
[1730766068729,7.15767,2405.2,2404.5,4.15875]
[1730766068730,0.140294,2404.7,2404.5,4.15875]
[1730766068963,0.140294,2404.7,2404.6,5.75224286]
[1730766069141,4.95447,2405.1,2404.6,5.75224286]
[1730766069336,4.95447,2405.1,2404.7,1.17767786]
[1730766069526,4.298304,2405.0,2404.8,1.17767786]
[1730766069733,4.298304,2405.0,2404.9,0.66562861]
[1730766070584,0.140294,2405.0,2404.9,1.17851181]
[1730766070730,0.140294,2405.0,2404.9,5.95321999]
[1730766071068,0.140294,2405.0,2404.9,6.37964683]
[1730766071275,4.97999,2405.4,2404.9,6.37964683]
[1730766071476,0.14036519,2405.0,2404.9,5.20242175]
[1730766071684,4.04087183,2405.5,2405.1,4.15778]
[1730766071865,4.04087183,2405.5,2405.2,6.53317142]
[1730766072184,4.04087183,2405.5,2405.3,1.18034342]
[1730766072346,4.04087183,2405.5,2405.4,1.18034342]
[1730766072674,8.19800183,2405.5,2405.4,1.18034342]
[1730766072880,8.19800183,2405.5,2405.4,0.6671352]
[1730766073047,4.04087183,2405.5,2405.4,0.6671352]
[1730766075788,8.19800183,2405.5,2405.4,0.6671352]
[1730766075948,9.51318501,2405.5,2405.4,0.25658439]
[1730766076382,5.35605501,2405.5,2404.9,0.8153]
[1730766076594,4.15783,2405.1,2405.0,1.17867794]
[1730766076774,4.04087183,2405.2,2405.0,0.66619386]
[1730766077083,0.802,2405.4,2405.1,0.66619386]
[1730766077267,4.95937,2405.4,2405.2,0.25622235]
[1730766077583,4.15737,2405.4,2405.3,0.25622235]
[1730766077743,12.35536183,2405.5,2405.3,0.25622235]
[1730766077943,12.35536183,2405.5,2405.0,4.15798]
[1730766078276,0.14117978,2405.4,2405.1,4.82358547]
[1730766078445,0.14117978,2405.4,2405.2,0.66576547]
[1730766078788,0.14117978,2405.4,2405.3,0.25606063]
[1730766079562,4.29848978,2405.4,2405.3,0.25606063]
[1730766081380,4.29848978,2405.4,2405.3,0.25606534]
[1730766081791,0.14117978,2405.4,2405.3,0.25606534]
[1730766082212,4.15693,2405.7,2405.3,0.25606534]
[1730766082411,4.15693,2405.7,2405.4,0.25606534]
[1730766082412,0.14108489,2405.6,2405.4,0.25606534]
[1730766082574,4.29805489,2405.6,2405.2,4.92484]
[1730766082781,4.29805489,2405.6,2405.3,0.25605989]
[1730766082981,4.29805489,2405.6,2405.4,0.25605989]
[1730766083190,4.29805489,2405.6,2405.2,4.92484]
[1730766083401,4.29805489,2405.6,2405.3,0.25615427]
[1730766083709,0.14108489,2405.6,2405.4,0.25615427]
[1730766083917,4.29818489,2405.6,2405.2,0.7672]
[1730766084123,4.15729,2405.5,2405.3,0.25616267]
[1730766084325,4.04087183,2405.4,2404.8,0.779]
[1730766084506,4.04087183,2405.4,2404.6,4.15858]
[1730766084507,4.15791,2405.1,2404.6,9.0962]
[1730766084814,4.95551,2405.1,2404.6,5.8472]
[1730766085020,0.14123512,2405.0,2404.6,5.8472]
[1730766085379,0.14123512,2405.0,2404.6,10.00581]
[1730766085620,0.14123512,2405.0,2404.7,4.15851]
[1730766085782,0.14123512,2405.0,2404.7,4.82548368]
[1730766086801,0.14123512,2405.0,2404.8,0.66697368]
[1730766087627,0.14123512,2405.0,2404.7,4.15851]
[1730766088589,4.15778,2405.2,2404.7,4.15851]
[1730766088811,0.1406262,2405.1,2404.8,4.15834]
[1730766089000,4.15735,2405.4,2404.9,4.15808]
[1730766089330,0.1406262,2405.3,2405.0,0.256507]
[1730766090182,0.1406262,2405.3,2405.1,0.7776]
[1730766090385,0.1406262,2405.3,2405.0,0.256507]
[1730766090641,0.1406262,2405.3,2405.0,0.7757367]
[1730766090793,0.1406262,2405.3,2405.1,0.256507]
[1730766091124,0.1406262,2405.3,2405.0,0.5192297]
[1730766091341,4.2981162,2405.3,2404.9,0.7776]
[1730766091689,4.2981162,2405.3,2405.0,0.25652609]
[1730766091913,0.1406262,2405.3,2405.1,0.25652609]
[1730766092116,0.1406262,2405.3,2405.2,0.25653112]
[1730766092639,4.96028,2405.5,2405.2,0.25653112]
[1730766092828,4.96028,2405.5,2405.0,4.158]
[1730766092829,0.1406262,2405.3,2405.0,4.158]
[1730766093029,4.15732,2405.4,2405.1,0.75836179]
[1730766093202,0.1406262,2405.3,2405.2,0.25648645]
[1730766093388,0.1406262,2405.3,2405.2,4.15765]
[1730766093587,4.91692,2405.7,2405.2,4.41413221]
[1730766093910,0.14084763,2405.6,2405.3,1.03808221]
[1730766094116,0.14084763,2405.6,2405.3,0.7816]
[1730766094333,0.14084763,2405.6,2405.3,1.74148753]
[1730766094543,4.29783763,2405.6,2405.3,1.74148753]
[1730766095531,0.14084763,2405.6,2405.3,1.74148753]
[1730766097142,4.29783763,2405.6,2405.3,1.74148753]
[1730766097652,4.29783763,2405.6,2405.3,0.95988753]
[1730766097811,4.29783763,2405.6,2405.2,4.15762]
[1730766098012,4.29783763,2405.6,2405.3,0.25670671]
[1730766098212,4.29783763,2405.6,2405.2,4.15762]
[1730766098431,4.29783763,2405.6,2405.3,0.25687815]
[1730766098637,4.29783763,2405.6,2405.2,4.15762]
[1730766098855,4.29783763,2405.6,2405.2,4.70566953]
[1730766099017,0.14084763,2405.6,2405.3,0.25688877]
[1730766099209,0.14084763,2405.6,2405.2,4.70566953]
[1730766099452,0.14084763,2405.6,2405.3,0.25697034]
[1730766099646,0.14084763,2405.6,2405.3,0.57835799]
[1730766099953,0.14084763,2405.6,2405.4,0.25693786]
[1730766100125,0.14084763,2405.6,2405.3,0.66150378]
[1730766100330,0.14084763,2405.6,2405.5,4.95373]
[1730766100642,4.29821884,2405.6,2405.5,0.2568735]
[1730766100819,4.15732,2405.4,2404.9,4.95469]
[1730766101152,0.14125884,2405.3,2405.0,1.57958332]
[1730766101452,0.14125884,2405.3,2405.1,0.25702866]
[1730766101656,0.14125884,2405.3,2405.0,0.911293]
[1730766101858,0.14125884,2405.3,2405.1,0.25711549]
[1730766102071,0.14125884,2405.3,2405.0,0.911293]
[1730766102360,0.14125884,2405.3,2405.1,0.25712257]
[1730766102572,0.14125884,2405.3,2405.0,0.911293]
[1730766102782,4.29882884,2405.3,2404.8,4.15824]
[1730766102941,8.45642884,2405.3,2404.9,0.415824]
[1730766103123,8.45642884,2405.3,2405.0,0.25715032]
[1730766103318,8.45642884,2405.3,2404.9,0.415824]
[1730766103523,8.45642884,2405.3,2405.0,0.25711471]
[1730766103724,4.29882884,2405.3,2404.9,0.415824]
[1730766103949,4.15766,2405.2,2405.0,0.25710938]
[1730766104148,4.29882884,2405.3,2404.9,4.573994]
[1730766104473,4.15727,2405.5,2405.1,4.15775]
[1730766104626,4.98401,2405.7,2405.2,0.25709335]
[1730766104627,4.15705,2405.6,2405.2,0.25709335]
[1730766104827,4.15705,2405.6,2405.3,0.25709335]
[1730766105042,4.15705,2405.6,2405.1,4.15775]
[1730766105360,4.15705,2405.6,2405.2,0.2569816]
[1730766105566,8.31472,2405.4,2405.3,0.2569816]
[1730766105736,4.92867,2405.2,2404.7,4.95822]
[1730766105938,4.92867,2405.2,2404.8,0.66841821]
[1730766106121,4.92867,2405.2,2404.9,0.66841821]
[1730766106322,4.92867,2405.2,2404.8,0.56266382]
[1730766106570,4.92867,2405.2,2404.9,0.66838097]
[1730766106739,4.92867,2405.2,2405.0,0.25706552]
[1730766106929,4.92867,2405.2,2404.7,0.7998]
[1730766106930,0.771,2405.2,2404.7,0.7998]
[1730766107130,0.771,2405.2,2404.8,0.66846143]
[1730766107131,4.92878,2405.2,2404.8,0.66846143]
[1730766107363,4.15743,2405.4,2404.9,0.25709447]
[1730766107567,4.15743,2405.4,2405.0,0.25709447]
[1730766107862,4.15743,2405.4,2405.1,0.25709447]
[1730766108043,4.1575,2405.3,2404.9,4.15807]
[1730766108242,0.1412035,2405.3,2405.0,0.25704001]
[1730766108446,0.1412035,2405.3,2404.9,5.069681]
[1730766108447,4.2987035,2405.3,2405.1,0.25704001]
[1730766108645,4.15766,2405.2,2404.9,0.911611]
[1730766108967,4.15766,2405.2,2405.0,0.25705781]
[1730766109290,0.1412035,2405.1,2404.9,0.911611]
[1730766109428,0.1412035,2405.1,2405.0,0.25702232]
[1730766109831,4.15748,2405.3,2405.0,0.82971283]
[1730766110073,0.1412035,2405.2,2404.8,4.15824]
[1730766110232,0.1412035,2405.2,2404.9,0.25700075]
[1730766110428,4.15769,2405.2,2405.0,0.25700075]
[1730766110665,0.1412035,2405.1,2404.8,4.15824]
[1730766110865,0.1412035,2405.1,2404.9,0.25688973]
[1730766111030,0.1412035,2405.1,2405.0,0.2568896]
[1730766111356,5.1307035,2405.1,2404.6,4.15856]
[1730766111558,4.15802,2405.0,2404.7,0.66798997]
[1730766111739,4.15802,2405.0,2404.8,0.25691314]
[1730766111942,4.15802,2405.0,2404.6,4.15856]
[1730766112169,4.15802,2405.0,2404.7,0.25692802]
[1730766112366,0.1412035,2404.9,2404.8,0.25692802]
[1730766112735,0.8316,2405.1,2404.8,0.25692802]
[1730766112936,0.8316,2405.1,2404.9,0.25692802]
[1730766113260,0.8316,2405.1,2404.7,4.15841]
[1730766113458,4.98922,2405.3,2404.8,5.24676871]
[1730766113647,9.14679,2405.3,2404.9,0.25682171]
[1730766113848,4.98917,2405.3,2404.8,4.989947]
[1730766114032,9.14682,2405.3,2404.9,0.25680548]
[1730766114227,4.15767,2405.2,2404.8,4.989947]
[1730766114436,4.15767,2405.2,2404.9,0.25679914]
[1730766114672,4.15767,2405.2,2404.8,0.831697]
[1730766114841,4.15767,2405.2,2404.9,0.25680009]
[1730766115040,4.15767,2405.2,2404.8,0.831697]
[1730766115339,4.15767,2405.2,2404.9,0.25680101]
[1730766115534,4.15767,2405.2,2404.8,0.831697]
[1730766115729,4.15767,2405.2,2404.9,0.25681627]
[1730766115934,4.15767,2405.2,2404.7,4.15841]
[1730766116254,4.15767,2405.2,2404.8,0.25679799]
[1730766116575,4.15767,2405.2,2404.9,0.25679799]
[1730766116872,13.18688183,2405.8,2405.3,4.15745]
[1730766117039,4.98901,2406.0,2405.4,4.91868]
[1730766117238,4.98896,2406.0,2405.5,4.15705]
[1730766117460,4.15646,2405.9,2405.5,4.15705]
[1730766117867,4.15646,2405.9,2405.4,4.91881]
[1730766118068,4.15646,2405.9,2405.5,0.25660236]
[1730766118369,4.15646,2405.9,2405.4,5.826437]
[1730766119243,4.15667,2405.8,2405.4,5.826437]
[1730766120657,8.19754183,2405.8,2405.2,4.92895]
[1730766120982,8.19761183,2405.8,2405.3,1.02799689]
[1730766121136,0.61871717,2406.3,2405.4,0.7714]
[1730766121333,0.61871717,2406.3,2406.1,4.15605]
[1730766121585,0.61871717,2406.3,2406.2,5.01044358]
[1730766121732,5.03266699,2406.9,2406.5,4.15527]
[1730766122071,5.03266699,2406.9,2406.6,4.15509]
[1730766122275,5.03266699,2406.9,2406.6,0.7562]
[1730766122444,5.03266699,2406.9,2406.8,4.15489]
[1730766122647,5.03266699,2406.9,2406.6,0.7562]
[1730766123259,0.14132994,2406.8,2406.6,0.7562]
[1730766123776,0.14132994,2406.8,2406.7,4.15506]
[1730766123984,0.14132994,2406.8,2406.6,5.402558]
[1730766124134,0.14132994,2406.8,2406.6,5.402488]
[1730766124479,0.14132994,2406.7,2406.6,5.402488]
[1730766124633,0.818,2407.1,2406.6,5.402488]
[1730766124832,0.14132994,2407.0,2406.6,5.402488]
[1730766125073,0.14132994,2407.0,2406.7,0.9557868]
[1730766125450,0.14132994,2407.0,2406.7,5.1108268]
[1730766126242,8.19513183,2407.2,2406.7,5.1108268]
[1730766126437,0.14291807,2407.1,2406.7,5.1108268]
[1730766127374,4.29731807,2407.1,2406.7,0.9557868]
[1730766127586,4.15457,2407.0,2406.6,1.247348]
[1730766127738,4.29731807,2407.1,2406.6,1.247348]
[1730766127938,4.1544,2407.1,2406.6,1.247348]
[1730766128200,0.14291807,2407.0,2406.6,1.247348]
[1730766129337,0.14291807,2407.0,2406.6,5.402538]
[1730766129861,0.14291807,2407.0,2406.6,1.247348]
[1730766130064,4.29747807,2407.0,2406.6,1.247348]
[1730766131081,0.14291807,2407.0,2406.6,1.247348]
[1730766131372,0.14291807,2407.0,2406.7,0.5402618]
[1730766133177,0.14291807,2407.0,2406.9,4.15472]
[1730766133385,0.14291807,2407.0,2406.9,5.0486009]
[1730766133588,4.15345,2407.7,2406.9,0.8938809]
[1730766133749,4.15345,2407.7,2407.3,0.8108]
[1730766133945,0.14291807,2407.6,2407.3,0.8108]
[1730766134293,0.14291807,2407.6,2407.4,4.15371]
[1730766134455,8.92425677,2408.0,2407.4,8.30746]
[1730766134789,8.92425677,2408.0,2407.4,4.15371]
[1730766134790,0.14291807,2407.5,2407.4,4.15371]
[1730766135082,0.14291807,2407.5,2407.3,4.96479]
[1730766135255,4.15318,2407.8,2407.3,4.96479]
[1730766135505,0.14438715,2407.4,2407.3,4.96479]
[1730766135656,4.15318,2407.8,2407.3,4.96479]
[1730766135853,0.14438715,2407.4,2407.3,4.96479]
[1730766136077,4.15318,2407.8,2407.3,4.96479]
[1730766136385,0.14438715,2407.4,2407.3,4.96479]
[1730766136563,4.15318,2407.8,2407.3,4.96479]
[1730766136772,0.14438715,2407.4,2407.3,4.96479]
[1730766137292,0.14438715,2407.4,2407.3,5.04786068]
[1730766137488,0.61836677,2408.0,2407.3,0.8108]
[1730766137641,0.14438715,2407.4,2407.0,4.93231]
[1730766137845,4.29833715,2407.4,2407.0,0.7779]
[1730766138098,4.15415,2407.3,2406.8,4.93275]
[1730766138253,4.29917642,2407.3,2406.8,4.93275]
[1730766138586,0.14502642,2407.3,2406.8,0.7779]
[1730766138785,4.15422,2407.2,2406.8,0.7779]
[1730766139145,0.14499486,2407.1,2406.8,0.7779]
[1730766139783,0.14499486,2407.1,2406.8,9.08745]
[1730766140155,4.15404,2407.3,2406.8,4.93266]
[1730766140648,0.14499486,2407.2,2406.8,9.08744]
[1730766140851,4.15404,2407.3,2406.8,9.08745]
[1730766141163,0.14499486,2407.2,2406.8,4.93266]
[1730766141476,4.15404,2407.3,2406.8,4.93266]
[1730766141796,0.14499486,2407.1,2406.8,4.93266]
[1730766142087,0.14499486,2407.0,2406.8,4.93266]
[1730766142258,4.15404,2407.3,2406.8,4.93266]
[1730766142460,0.14499486,2406.9,2406.8,4.93266]
[1730766142687,4.15404,2407.3,2406.8,4.93266]
[1730766142851,0.14499486,2406.9,2406.8,4.93266]
[1730766143188,4.15404,2407.3,2406.8,4.93266]
[1730766143692,4.29921486,2407.2,2406.8,0.7779]
[1730766143900,4.1545,2407.1,2406.6,4.9501]
[1730766144363,0.14499486,2407.0,2406.6,4.9501]
[1730766144988,0.14499486,2407.0,2406.7,4.15505]
[1730766145501,0.14499486,2406.9,2406.7,4.15505]
[1730766145809,13.10146183,2407.2,2406.7,4.15505]
[1730766146103,4.15398,2407.4,2407.0,4.15451]
[1730766146389,0.14499486,2407.1,2407.0,4.15445]
[1730766146553,4.15371,2407.5,2407.0,4.40981639]
[1730766146767,4.15387,2407.4,2407.1,0.25536639]
[1730766146967,8.30785,2407.4,2406.9,4.1547]
[1730766147211,4.15365,2407.6,2407.1,4.15425]
[1730766147420,4.15365,2407.6,2407.2,0.25532651]
[1730766147596,4.15365,2407.6,2407.3,0.25532651]
[1730766147795,4.15365,2407.6,2407.1,4.15425]
[1730766148122,4.15365,2407.6,2407.2,0.25545002]
[1730766148406,4.15365,2407.6,2407.3,0.25545002]
[1730766148576,4.15365,2407.6,2407.4,0.25545002]
[1730766148771,4.15365,2407.6,2407.1,4.15425]
[1730766148998,4.15365,2407.6,2407.2,0.66461094]
[1730766149201,4.15365,2407.6,2407.3,0.25561474]
[1730766149407,4.04087183,2407.8,2407.4,0.25561474]
[1730766149723,4.77120677,2408.0,2407.5,0.66495391]
[1730766149871,4.77124677,2408.0,2407.6,0.25561474]
[1730766150071,4.15315,2407.9,2407.7,0.25561474]
[1730766150305,4.15316,2407.8,2407.4,0.7646]
[1730766150570,4.15316,2407.8,2407.5,0.66491987]
[1730766150714,4.15316,2407.8,2407.6,0.66491987]
[1730766151025,4.77120677,2408.0,2407.7,0.66492377]
[1730766151177,0.61836677,2408.0,2407.8,0.25573237]
[1730766151379,0.61836677,2408.0,2407.9,0.25573237]
[1730766151602,0.61836677,2408.0,2407.9,0.66513395]
[1730766151823,0.61836677,2408.0,2407.9,0.66523551]
[1730766152320,0.61836677,2408.0,2407.9,1.17662076]
[1730766153324,0.76333796,2408.0,2407.9,1.17662076]
[1730766153616,0.76333796,2408.0,2407.9,0.66523551]
[1730766153617,4.91615796,2408.0,2407.9,0.66523551]
[1730766153813,6.22714294,2408.0,2407.9,0.66523551]
[1730766154121,0.76333796,2408.0,2407.9,0.66523551]
[1730766154835,4.91615796,2408.0,2407.9,0.66523551]
[1730766155893,0.76333796,2408.0,2407.9,0.66523551]
[1730766156512,0.76333796,2408.0,2407.9,1.97154075]
[1730766156863,0.76333796,2408.0,2407.9,1.97009576]
[1730766157157,0.76333796,2408.0,2407.9,3.04027273]
[1730766158213,0.76333796,2408.0,2407.9,1.97009022]
[1730766159224,0.76333796,2408.0,2407.9,6.12308022]
[1730766159225,0.14497119,2408.0,2407.9,6.12308022]
[1730766159562,0.0598727,2408.4,2408.0,4.15276]
[1730766159754,0.0598727,2408.4,2408.1,5.41005427]
[1730766159918,0.0598727,2408.4,2408.3,4.9401]
[1730766160275,0.0598727,2408.4,2408.3,7.14911175]
[1730766160464,0.0598727,2408.4,2408.3,1.82281543]
[1730766160622,0.0598727,2408.4,2408.3,1.96042055]
[1730766162361,4.2120027,2408.4,2408.3,1.96042055]
[1730766162663,0.0598727,2408.4,2408.3,1.17262055]
[1730766163432,0.0598727,2408.4,2408.3,0.66277019]
[1730766164461,4.2120027,2408.4,2408.3,0.66277019]
[1730766164823,8.25287453,2408.4,2408.3,0.25490558]
[1730766167264,8.39433855,2408.4,2408.3,0.25490558]
[1730766167563,8.39433855,2408.4,2407.6,0.8249]
[1730766167564,3.0,2408.3,2407.6,0.8249]
[1730766167768,4.15292,2408.0,2407.7,0.66250571]
[1730766168062,4.15293,2408.0,2407.6,0.8249]
[1730766168264,0.14130631,2407.9,2407.8,0.2548184]
[1730766169551,4.15248,2408.2,2407.8,4.81578313]
[1730766169789,4.15248,2408.2,2407.9,0.66262313]
[1730766170096,4.86344453,2408.4,2408.0,0.2548184]
[1730766170261,9.01572453,2408.4,2408.1,0.2548184]
[1730766170454,9.01572453,2408.4,2408.0,0.7875]
[1730766170649,9.01566453,2408.4,2408.1,0.25484447]
[1730766170987,9.01566453,2408.4,2408.0,0.7875]
[1730766170988,4.15247,2408.2,2408.0,0.7875]
[1730766171192,4.15247,2408.2,2408.1,0.25484654]
[1730766171492,9.01566453,2408.4,2408.0,0.7875]
[1730766171691,9.01566453,2408.4,2408.1,0.25489414]
[1730766171855,13.16791453,2408.4,2408.0,0.7875]
[1730766172058,8.25296453,2408.4,2408.1,0.25490973]
[1730766172251,12.40519453,2408.4,2408.2,0.25490973]
[1730766172457,4.15231,2408.3,2408.0,0.7875]
[1730766172760,4.15231,2408.3,2408.1,0.25496345]
[1730766172995,4.15231,2408.3,2408.0,1.28154]
[1730766173190,4.15231,2408.3,2408.1,0.25496421]
[1730766173393,4.15231,2408.3,2408.0,1.28154]
[1730766173580,4.15231,2408.3,2408.1,0.25503216]
[1730766173767,4.15231,2408.3,2408.0,1.28154]
[1730766174101,4.15231,2408.3,2408.1,0.25504141]
[1730766174267,8.25296453,2408.4,2408.0,1.28154]
[1730766174467,4.2120927,2408.4,2408.1,0.25516606]
[1730766174664,8.3643427,2408.4,2408.0,0.7875]
[1730766174878,8.3643127,2408.4,2408.1,0.25516234]
[1730766175195,8.3643127,2408.4,2408.0,0.7875]
[1730766175495,4.15234,2408.3,2408.1,0.25534756]
[1730766175664,4.2120927,2408.4,2408.0,0.7875]
[1730766175868,4.2120927,2408.4,2408.1,0.25534361]
[1730766176077,4.2120927,2408.4,2408.0,0.7875]
[1730766176282,0.0598727,2408.4,2408.1,0.25549358]
[1730766176453,0.0598727,2408.4,2408.2,0.25546407]
[1730766176796,0.0598727,2408.4,2408.3,0.25546407]
[1730766177375,0.0598727,2408.4,2408.3,1.47031655]
[1730766177572,0.0598727,2408.4,2408.3,6.13359294]
[1730766177885,0.0598727,2408.4,2408.3,6.71148313]
[1730766178089,0.0598727,2408.4,2408.3,7.22247242]
[1730766178655,0.0598727,2408.4,2408.3,6.71148313]
[1730766178859,0.0598727,2408.4,2408.3,6.79451555]
[1730766179958,0.0598727,2408.4,2408.3,7.22277306]
[1730766180159,0.0598727,2408.4,2408.3,10.22277306]
[1730766180559,0.0598727,2408.4,2408.3,3.07047306]
[1730766180760,0.0598727,2408.4,2408.3,2.55918313]
[1730766180968,0.0598727,2408.4,2408.3,0.66431655]
[1730766181194,0.0598727,2408.4,2408.3,0.66479755]
[1730766181399,0.0598727,2408.4,2408.3,0.25583195]
[1730766183275,0.20140765,2408.4,2408.3,0.25583195]
[1730766183978,0.20140765,2408.4,2408.3,5.20253195]
[1730766184201,0.20140765,2408.4,2408.3,6.5992895]
[1730766184664,0.20140765,2408.4,2408.3,2.4469895]
[1730766186159,0.20140765,2408.4,2408.3,2.44703235]
[1730766186364,0.20140765,2408.4,2408.3,2.03769898]
[1730766186570,0.20140765,2408.4,2408.3,2.44702642]
[1730766186806,0.20140765,2408.4,2408.3,2.03769898]
[1730766187004,0.20140765,2408.4,2408.3,2.44701924]
[1730766187166,0.20140765,2408.4,2408.3,2.03769898]
[1730766188583,0.20140765,2408.4,2408.3,0.25582925]
[1730766189116,0.20140765,2408.4,2407.8,4.96476]
[1730766189117,4.1524,2408.3,2407.8,4.96476]
[1730766189323,4.04087183,2407.9,2407.5,0.8116]
[1730766189503,8.19348183,2408.2,2407.6,0.25604895]
[1730766189664,4.18262758,2408.2,2407.7,4.40928895]
[1730766190007,0.14175575,2408.2,2407.9,4.92688]
[1730766190213,0.0598727,2408.4,2408.0,0.25592246]
[1730766190362,0.0598727,2408.4,2408.1,4.40857246]
[1730766190561,0.0598727,2408.4,2408.2,0.85612325]
[1730766190991,0.0598727,2408.4,2408.0,4.15266]
[1730766191194,0.0598727,2408.4,2408.1,0.25589888]
[1730766191377,0.0598727,2408.4,2408.0,4.15266]
[1730766191581,0.0598727,2408.4,2408.1,0.33895252]
[1730766191913,0.0598727,2408.4,2408.2,5.1662575]
[1730766192128,0.0598727,2408.4,2408.3,1.19603743]